bitfinex-derivatives/quotes_SOLF0:USTF0_20250311
["timestamp","ask_amount","ask_price","bid_price","bid_amount"]
[1741699819885,32.7733567,125.05,124.83,294.6297]
[1741699820086,32.7733567,125.05,124.83,488.3413]
[1741699820286,32.7733567,125.09,124.89,32.7733567]
[1741699820488,8.1299,125.1,124.89,515.7733567]
[1741699820694,272.97782476,125.24,124.93,32.7733567]
[1741699820695,32.7733567,125.17,124.93,32.7733567]
[1741699820999,32.7733567,125.25,125.01,32.7733567]
[1741699821286,32.7733567,125.25,125.05,32.7733567]
[1741699821493,32.7733567,125.25,125.05,297.1933567]
[1741699821687,264.42,125.27,125.01,483.0]
[1741699821688,32.7733567,125.21,125.01,483.0]
[1741699821898,32.7733567,125.17,125.01,191.0]
[1741699822088,32.7733567,125.13,124.95,292.0]
[1741699822591,7.992,125.15,125.03,0.05552794]
[1741699822789,8.5182,125.2,125.03,0.05552794]
[1741699823088,32.7733567,125.17,125.01,264.42]
[1741699823289,32.7733567,125.13,124.95,483.0]
[1741699823492,32.7733567,125.1,124.89,589.0133567]
[1741699823695,7.9963,125.09,124.94,488.5101]
[1741699823883,8.5182,125.2,124.97,32.7733567]
[1741699824083,32.7733567,125.22,125.01,32.82392904]
[1741699824290,32.7733567,125.22,125.02,264.24]
[1741699824491,32.7733567,125.18,125.02,264.24]
[1741699824688,7.9945,125.11,125.02,556.24]
[1741699824894,32.7733567,125.18,124.98,294.7013]
[1741699825091,34.37105601,125.18,124.98,294.7013]
[1741699825396,0.0572215,125.09,125.07,0.05191259]
[1741699825597,2.806,125.21,125.07,0.05191259]
[1741699825787,32.7733567,125.22,125.01,292.0]
[1741699825994,32.7733567,125.16,124.99,293.60012801]
[1741699826297,32.7733567,125.12,124.99,1.60012801]
[1741699826791,0.05575928,125.07,125.04,0.053401]
[1741699826992,0.05575928,125.07,124.92,264.1]
[1741699827200,32.7733567,125.11,124.92,556.1]
[1741699827396,8.1658,125.15,124.88,515.7733567]
[1741699827597,32.7733567,125.07,124.88,483.0]
[1741699827901,8.006,124.93,124.86,8.0103]
[1741699828101,32.7733567,125.0,124.83,264.1]
[1741699828289,0.05905851,124.99,124.83,556.1]
[1741699828497,0.05905851,124.99,124.83,292.0]
[1741699828694,32.7733567,125.0,124.83,292.0]
[1741699828996,8.0085,124.89,124.83,292.0]
[1741699829207,32.7733567,124.96,124.76,297.5271]
[1741699829596,0.05816907,124.87,124.85,0.05890445]
[1741699829900,32.7733567,125.0,124.76,330.3004567]
[1741699830092,32.7733567,125.0,124.8,32.7733567]
[1741699830293,29.58288097,125.0,124.82,29.58288097]
[1741699830496,8.0103,124.87,124.81,8.0135]
[1741699830799,29.58288097,124.88,124.74,2.7153]
[1741699831002,29.58288097,124.85,124.73,191.0]
[1741699831200,29.63790408,124.85,124.83,0.06100664]
[1741699831395,29.63790408,124.85,124.68,2.699]
[1741699831593,8.3594,124.93,124.66,556.08]
[1741699831594,29.58288097,124.79,124.66,556.08]
[1741699831796,29.58288097,124.79,124.66,264.08]
[1741699831999,29.58288097,124.79,124.64,115.88540083]
[1741699832197,264.08,124.86,124.59,264.14]
[1741699832198,29.58288097,124.76,124.59,292.0]
[1741699832402,8.022,124.68,124.58,29.58288097]
[1741699832604,0.05603005,124.69,124.55,588.52738097]
[1741699832801,8.0251,124.64,124.57,8.0288]
[1741699833102,29.58288097,124.7,124.53,2.699]
[1741699833300,8.0258,124.62,124.56,8.0291]
[1741699833500,29.58288097,124.7,124.53,2.699]
[1741699833704,29.58288097,124.73,124.55,29.58288097]
[1741699833903,0.05600523,124.63,124.6,0.05650564]
[1741699834407,29.58288097,124.65,124.48,556.14]
[1741699834597,29.58288097,124.74,124.48,556.14]
[1741699834802,0.05592443,124.63,124.6,0.06030568]
[1741699835199,2.8929,124.77,124.6,2.46030568]
[1741699835506,29.58288097,124.82,124.62,29.58288097]
[1741699835806,29.58288097,124.79,124.62,321.58288097]
[1741699836008,29.58288097,124.79,124.66,8.0231]
[1741699836203,8.4016,124.86,124.62,321.58288097]
[1741699836398,29.58288097,124.82,124.65,29.58288097]
[1741699836600,29.58288097,124.79,124.62,321.58288097]
[1741699836907,29.58288097,124.85,124.68,29.58288097]
[1741699837104,29.58288097,124.85,124.68,321.58288097]
[1741699837303,8.4016,124.86,124.71,29.58288097]
[1741699837606,29.58288097,124.79,124.64,294.7436]
[1741699837799,0.05199155,124.8,124.64,2.7436]
[1741699838005,8.0174,124.76,124.69,8.0213]
[1741699838396,8.4016,124.86,124.69,292.0]
[1741699838595,29.58288097,124.91,124.74,29.58288097]
[1741699838803,29.58288097,124.97,124.77,29.58288097]
[1741699839010,8.6843,124.98,124.83,29.58288097]
[1741699839302,29.58288097,125.03,124.86,29.58288097]
[1741699839508,29.58288097,125.03,124.86,321.58288097]
[1741699839806,29.58288097,125.03,124.83,2.8043]
[1741699839807,29.58288097,124.97,124.81,191.0]
[1741699840006,29.58288097,124.97,124.81,483.0]
[1741699840207,29.58288097,124.94,124.8,83.34733981]
[1741699840405,0.05966192,124.9,124.88,0.05939536]
[1741699840601,29.58288097,124.88,124.8,83.34733981]
[1741699840809,8.0136,124.81,124.8,83.34733981]
[1741699841205,8.0111,124.85,124.8,83.34733981]
[1741699841408,29.58288097,124.87,124.8,83.34733981]
[1741699841609,29.58288097,124.84,124.8,83.34733981]
[1741699841807,8.0136,124.81,124.8,83.34733981]
[1741699842113,29.58288097,124.92,124.81,6.80182378]
[1741699842314,5.7436,124.93,124.81,6.80182378]
[1741699842707,29.58288097,124.95,124.81,6.80182378]
[1741699842912,2.7053,124.96,124.81,321.58288097]
[1741699843212,288.2218,125.23,124.93,29.58288097]
[1741699843405,29.58288097,125.13,124.96,29.58288097]
[1741699843602,29.58288097,125.13,124.96,321.58288097]
[1741699843818,0.05136571,125.08,124.96,483.0]
[1741699844009,0.05136571,125.08,124.96,191.0]
[1741699844209,29.58288097,125.13,125.03,0.05365858]
[1741699844607,29.58288097,125.16,124.98,29.58288097]
[1741699844810,2.8178,125.18,125.01,29.58288097]
[1741699845009,29.58288097,125.19,125.07,0.05991688]
[1741699845208,29.58288097,125.16,125.07,0.05991688]
[1741699845512,29.58288097,125.13,124.95,29.58288097]
[1741699846011,264.26,125.14,125.02,6.80182378]
[1741699846211,264.26,125.14,125.03,0.05734851]
[1741699846411,29.58288097,125.16,125.03,0.05734851]
[1741699846607,32.24028097,125.22,125.04,29.58288097]
[1741699846810,32.24028097,125.22,125.04,321.58288097]
[1741699847007,7.9922,125.15,125.08,7.996]
[1741699847208,32.24028097,125.22,125.04,29.58288097]
[1741699847403,29.58288097,125.19,125.04,29.58288097]
[1741699847604,0.05682322,125.13,125.1,0.05246294]
[1741699847808,29.58288097,125.25,125.1,0.05246294]
[1741699848114,29.58288097,125.31,125.13,29.58288097]
[1741699848418,2.8178,125.29,125.13,321.58288097]
[1741699848607,7.988,125.21,125.15,7.9918]
[1741699848808,2.8178,125.29,125.12,264.14]
[1741699849006,29.58288097,125.26,125.12,264.14]
[1741699849210,0.0538196,125.19,125.17,0.05237039]
[1741699849718,0.0538196,125.19,125.14,129.64365553]
[1741699849719,2.4,125.19,125.14,129.64365553]
[1741699849917,26.14194084,125.2,125.17,1.236e-05]
[1741699850111,28.54194084,125.2,125.14,129.64365553]
[1741699850413,76.44832276,126.73,125.14,129.64365553]
[1741699850414,279.9198,125.34,125.14,129.64365553]
[1741699850613,29.58288097,125.21,125.14,129.64365553]
[1741699850815,29.58288097,125.23,125.14,129.64365553]
[1741699851023,29.58288097,125.23,125.04,152.42471272]
[1741699851214,263.96,125.25,125.13,7.9929]
[1741699851413,29.58288097,125.29,125.17,0.05690101]
[1741699851814,265.55578712,125.33,125.14,2.7838]
[1741699851815,29.58288097,125.26,125.14,2.7838]
[1741699852018,29.58288097,125.23,125.14,2.7838]
[1741699852320,29.58288097,125.23,125.07,292.0]
[1741699852521,29.58288097,125.23,125.05,2.7838]
[1741699852710,7.9918,125.15,125.14,0.05517122]
[1741699852910,0.05360613,125.16,125.14,0.05517122]
[1741699853114,0.05360613,125.16,125.05,294.7838]
[1741699853115,29.58288097,125.2,125.05,2.7838]
[1741699853421,0.05863389,125.16,125.05,2.7838]
[1741699853620,29.58288097,125.14,125.03,122.84183175]
[1741699853926,7.9988,125.04,125.03,122.84183175]
[1741699854116,29.58288097,125.04,125.01,192.32944881]
[1741699854312,8.0007,125.01,125.0,310.4458577]
[1741699855023,8.0014,125.0,124.99,0.05559631]
[1741699855222,31.98288097,125.01,124.9,2.837]
[1741699855420,29.58288097,124.98,124.89,255.92048281]
[1741699855621,266.6487,125.13,124.89,255.92048281]
[1741699855820,29.58288097,125.02,124.89,255.92048281]
[1741699856023,8.0043,124.96,124.89,255.92048281]
[1741699856220,29.58288097,125.02,124.89,255.92048281]
[1741699856529,0.05731753,124.94,124.91,0.05341157]
[1741699856825,29.58288097,125.18,124.94,292.0]
[1741699857121,7.9936,125.13,125.02,29.58288097]
[1741699857329,29.58288097,125.21,125.02,29.58288097]
[1741699857522,29.58288097,125.18,124.99,29.58288097]
[1741699857725,29.58288097,125.15,124.96,29.58288097]
[1741699857928,29.58288097,125.15,125.03,7.9994]
[1741699858227,29.58288097,125.15,124.99,29.58288097]
[1741699858228,0.05193978,125.1,125.07,0.05687641]
[1741699858732,29.58288097,125.15,124.96,29.58288097]
[1741699858933,263.9,125.17,124.99,29.58288097]
[1741699859135,0.05659814,125.1,125.07,0.05856693]
[1741699859631,263.9,125.17,124.99,321.58288097]
[1741699859836,29.58288097,125.21,125.05,29.58288097]
[1741699860136,263.86,125.23,125.08,29.58288097]
[1741699860328,29.58288097,125.32,125.14,29.58288097]
[1741699860525,29.58288097,125.29,125.11,29.58288097]
[1741699860729,7.9907,125.17,125.07,483.0]
[1741699860933,29.58288097,125.23,125.06,35.73948097]
[1741699861136,29.58288097,125.2,125.06,6.1566]
[1741699861530,0.05153589,125.13,125.11,0.05433336]
[1741699862038,29.58288097,125.17,125.0,29.58288097]
[1741699862230,263.86,125.19,125.0,29.58288097]
[1741699862536,263.86,125.19,124.94,302.4889]
[1741699862735,29.58288097,125.15,124.95,29.58288097]
[1741699862935,29.58288097,125.09,124.94,10.4889]
[1741699863128,29.58288097,125.03,124.87,29.58288097]
[1741699863333,8.0068,124.92,124.85,6.8788]
[1741699863525,29.58288097,125.0,124.94,0.05345594]
[1741699863929,0.06018582,124.9,124.79,3.4471]
[1741699864128,2.4,125.0,124.87,29.58288097]
[1741699864337,29.58288097,125.06,124.88,3.3663]
[1741699864536,10.4368,125.07,124.88,3.3663]
[1741699864730,29.58288097,125.04,124.88,3.3663]
[1741699865032,29.58288097,124.95,124.8,3.5125]
[1741699865235,274.3568,125.07,124.85,29.58288097]
[1741699865537,274.3568,125.07,124.91,29.58288097]
[1741699865538,297.01418097,125.07,124.91,29.58288097]
[1741699865732,29.58288097,125.04,124.88,29.58288097]
[1741699865935,29.58288097,125.01,124.86,3.6253]
[1741699866130,267.4313,125.07,124.79,33.02998097]
[1741699866131,29.58288097,124.95,124.79,33.02998097]
[1741699866337,263.92,124.94,124.79,3.4471]
[1741699866833,263.92,125.0,124.85,0.05276526]
[1741699867035,8.0082,124.9,124.85,0.05276526]
[1741699867237,29.58288097,124.96,124.79,3.4471]
[1741699867535,29.58288097,124.99,124.81,29.58288097]
[1741699867732,29.58288097,124.96,124.79,295.4471]
[1741699867928,29.58288097,124.93,124.79,3.4471]
[1741699868127,0.0568877,124.89,124.86,0.05432579]
[1741699868326,29.58288097,124.99,124.86,0.05432579]
[1741699868728,263.92,125.0,124.79,559.4271]
[1741699868729,29.58288097,124.93,124.79,3.4471]
[1741699868927,29.58288097,124.93,124.75,516.20818097]
[1741699868928,29.58288097,124.93,124.75,33.20818097]
[1741699869131,8.0116,124.85,124.76,8.0166]
[1741699869333,29.58288097,124.87,124.75,3.6253]
[1741699869532,29.58288097,124.84,124.7,3.6289]
[1741699869737,0.04902907,124.82,124.7,3.6289]
[1741699869935,29.58288097,124.84,124.7,3.6289]
[1741699870134,263.98,124.89,124.72,29.58288097]
[1741699870335,29.58288097,124.87,124.7,3.6289]
[1741699870530,29.58288097,124.84,124.7,3.6289]
[1741699870736,29.58288097,124.81,124.67,81.78806234]
[1741699870936,29.58288097,124.78,124.67,81.78806234]
[1741699871139,8.0162,124.77,124.67,81.78806234]
[1741699871341,293.70288097,124.81,124.67,81.78806234]
[1741699871545,29.58288097,124.75,124.67,81.78806234]
[1741699872040,29.58288097,124.72,124.67,81.78806234]
[1741699872239,8.0219,124.68,124.67,76.16666187]
[1741699872542,29.58288097,124.69,124.55,3.4484]
[1741699872739,29.58288097,124.66,124.55,3.4484]
[1741699872941,29.58288097,124.69,124.55,3.4484]
[1741699873243,29.58288097,124.77,124.61,29.58288097]
[1741699873432,264.12,124.78,124.61,29.58288097]
[1741699873939,6.884e-05,124.7,124.68,0.05355322]
[1741699874444,2.4,124.7,124.56,293.60565189]
[1741699874641,29.58288097,124.73,124.57,6.8543]
[1741699874945,29.58288097,124.7,124.57,6.8543]
[1741699875137,29.58288097,124.67,124.57,3.4059]
[1741699875336,29.58288097,124.74,124.64,8.976e-05]
[1741699875337,264.39276641,124.66,124.64,8.976e-05]
[1741699875538,29.58288097,124.63,124.48,3.5481]
[1741699875739,29.58288097,124.59,124.48,3.5481]
[1741699875938,8.0311,124.54,124.48,3.5481]
[1741699876133,29.58288097,124.56,124.48,3.5481]
[1741699876337,29.58288097,124.59,124.48,3.5481]
[1741699876533,293.92288097,124.62,124.48,3.5481]
[1741699876738,29.58288097,124.58,124.52,0.0579485]
[1741699876938,8.0316,124.53,124.52,0.00195599]
[1741699877135,29.58288097,124.55,124.42,3.5481]
[1741699877340,264.58,124.58,124.42,3.5481]
[1741699877341,29.58288097,124.52,124.42,3.5481]
[1741699877636,29.58288097,124.52,124.38,83.64434749]
[1741699877637,29.58288097,124.55,124.38,83.64434749]
[1741699877837,29.58288097,124.55,124.39,3.3905]
[1741699878238,0.05461312,124.48,124.45,0.05974691]
[1741699878632,2.42,124.48,124.35,3.5745]
[1741699878839,294.16288097,124.49,124.35,3.5745]
[1741699879143,29.58288097,124.46,124.45,5.659e-05]
[1741699879342,294.16288097,124.49,124.35,3.5745]
[1741699879544,8.0329,124.51,124.43,8.038]
[1741699879738,29.58288097,124.54,124.37,29.58288097]
[1741699880538,8.0368,124.45,124.44,0.05071086]
[1741699880736,0.05401489,124.47,124.44,0.05071086]
[1741699881039,29.58288097,124.45,124.31,6.8039]
[1741699881243,29.58288097,124.42,124.31,6.8039]
[1741699881448,29.58288097,124.39,124.23,33.18968097]
[1741699881642,264.76,124.46,124.29,29.58288097]
[1741699882142,264.76,124.46,124.36,0.05290808]
[1741699882143,8.09900185,124.39,124.36,0.05290808]
[1741699882344,0.05790185,124.39,124.36,0.05290808]
[1741699882539,29.58288097,124.42,124.24,3.663]
[1741699882748,29.58288097,124.45,124.26,29.58288097]
[1741699883048,0.05175927,124.39,124.36,0.05551611]
[1741699883440,29.58288097,124.42,124.26,29.58288097]
[1741699883643,8.0386,124.43,124.36,8.0423]
[1741699883851,0.05515715,124.39,124.36,0.05997525]
[1741699884144,29.58288097,124.51,124.36,2.47997525]
[1741699884443,29.58288097,124.51,124.37,3.6156]
[1741699884644,29.58288097,124.48,124.37,3.6156]
[1741699884854,29.58288097,124.45,124.29,191.0]
[1741699885045,29.58288097,124.42,124.3,3.6156]
[1741699885448,29.58288097,124.45,124.3,3.6156]
[1741699885749,0.05403937,124.37,124.35,0.05610515]
[1741699886151,29.58288097,124.45,124.3,3.6156]
[1741699886551,0.05563524,124.37,124.35,0.05329552]
[1741699886943,29.58288097,124.45,124.3,3.6156]
[1741699887145,29.58288097,124.42,124.3,3.6156]
[1741699887348,8.0426,124.36,124.35,0.05172038]
[1741699887744,32.00288097,124.36,124.22,3.7156]
[1741699887940,32.00288097,124.36,124.19,29.58288097]
[1741699887941,29.58288097,124.36,124.23,3.4266]
[1741699888351,8.0457,124.32,124.26,8.0485]
[1741699888543,8.0457,124.32,124.23,3.4266]
[1741699888544,29.58288097,124.36,124.23,3.4266]
[1741699888748,29.58288097,124.33,124.23,3.4266]
[1741699888950,29.58288097,124.3,124.28,0.06025596]
[1741699889145,0.05856959,124.31,124.28,0.06025596]
[1741699889345,29.58288097,124.33,124.2,3.4797]
[1741699889551,29.58288097,124.3,124.2,3.4797]
[1741699889752,29.58288097,124.3,124.28,0.05329793]
[1741699890050,29.58288097,124.36,124.2,3.4797]
[1741699890251,0.05309123,124.3,124.28,0.05432594]
[1741699890552,265.04,124.38,124.28,0.05432594]
[1741699890753,265.04,124.38,124.22,29.58288097]
[1741699890954,29.58288097,124.39,124.2,268.6597]
[1741699891252,29.58288097,124.39,124.21,31.04121004]
[1741699891456,29.58288097,124.36,124.2,268.6597]
[1741699891760,29.58288097,124.3,124.2,3.4797]
[1741699891960,29.58288097,124.3,124.19,8.053]
[1741699892152,265.26,124.33,124.17,3.4266]
[1741699892153,29.58288097,124.27,124.17,3.4266]
[1741699892353,289.29,124.33,124.13,3.5002]
[1741699892354,26.23129406,124.21,124.13,3.5002]
[1741699892649,26.23129406,124.18,124.09,3.4676]
[1741699892851,26.23129406,124.15,124.09,3.4676]
[1741699893055,0.06098719,124.15,124.12,0.06030672]
[1741699893751,26.23129406,124.13,124.12,0.06030672]
[1741699894251,8.059,124.11,124.08,0.34493]
[1741699894454,26.23129406,124.09,124.08,0.34493]
[1741699894659,26.23129406,124.09,124.01,3.4084]
[1741699894964,26.23129406,124.05,123.97,3.4184]
[1741699895167,26.23129406,124.09,123.97,3.4184]
[1741699895460,7.821e-05,124.02,124.01,8.065]
[1741699895864,26.23129406,124.08,123.97,3.4184]
[1741699896362,30.03626887,124.08,123.97,3.4184]
[1741699896560,30.03626887,124.05,123.92,3.4084]
[1741699896859,30.03626887,124.05,124.01,0.06014478]
[1741699896860,0.05635915,124.04,124.01,0.06014478]
[1741699897052,30.03626887,124.02,123.92,3.4084]
[1741699897463,265.44,124.06,123.89,8.073]
[1741699897464,8.0679,123.97,123.89,8.073]
[1741699897965,30.03626887,123.99,123.82,30.03626887]
[1741699898259,0.0580184,123.94,123.92,0.05415897]
[1741699898454,0.0580184,123.94,123.93,8.0705]
[1741699898651,30.03626887,124.01,123.85,30.03626887]
[1741699898955,8.0674,123.98,123.89,8.073]
[1741699899158,30.03626887,123.98,123.82,30.03626887]
[1741699899359,30.03626887,124.01,123.83,1.47160215]
[1741699899554,30.03626887,123.98,123.83,1.47160215]
[1741699899859,30.03626887,123.95,123.91,0.05520166]
[1741699900161,0.05794115,123.93,123.8,6.9467]
[1741699900360,30.03626887,124.01,123.82,30.03626887]
[1741699900551,30.03626887,124.01,123.85,30.03626887]
[1741699900752,265.66,124.03,123.86,1.47236585]
[1741699900955,265.66,124.03,123.86,293.47236585]
[1741699901156,30.03626887,123.98,123.82,30.03626887]
[1741699901353,0.05756357,123.96,123.93,0.0594304]
[1741699901762,30.03626887,123.98,123.8,6.9467]
[1741699901957,0.05083828,123.96,123.93,0.05127903]
[1741699902153,8.0676,123.98,123.9,8.0722]
[1741699902361,30.03626887,124.04,123.88,30.03626887]
[1741699902567,30.03626887,124.04,123.93,0.05368199]
[1741699902759,30.03626887,124.07,123.93,0.05368199]
[1741699903064,295.89626887,124.1,123.94,30.03626887]
[1741699903265,8.0602,124.09,123.95,1.46940607]
[1741699903466,295.89626887,124.16,123.97,30.03626887]
[1741699903668,30.03626887,124.16,124.0,30.03626887]
[1741699903966,30.03626887,124.19,124.03,30.03626887]
[1741699904162,30.03626887,124.19,124.04,5.06750607]
[1741699904362,30.03626887,124.13,124.04,3.5981]
[1741699904558,0.05378646,124.12,124.04,3.5981]
[1741699904767,30.03626887,124.1,124.04,3.5981]
[1741699904961,30.03626887,124.1,123.98,3.3934]
[1741699905159,30.03626887,124.04,123.95,3.6852]
[1741699905357,3.4948,124.09,123.95,3.6852]
[1741699905554,30.03626887,124.1,123.96,3.3934]
[1741699905758,30.03626887,124.07,123.96,3.3934]
[1741699905956,0.05770883,124.03,124.01,0.0570903]
[1741699906263,8.12190883,124.03,123.88,322.03626887]
[1741699906565,0.05770883,124.03,123.89,7.3865]
[1741699906757,30.03626887,124.07,123.94,8.0698]
[1741699906969,30.03626887,124.04,123.89,7.3865]
[1741699907163,30.03626887,124.01,123.89,7.3865]
[1741699907368,8.0705,123.93,123.89,3.6852]
[1741699907766,30.03626887,123.98,123.9,8.13073019]
[1741699907964,30.03626887,123.98,123.9,0.05853019]
[1741699908262,0.05542197,123.95,123.9,8.0721]
[1741699908465,0.05542197,123.95,123.93,0.05700816]
[1741699908969,265.96,124.0,123.85,30.03626887]
[1741699909163,265.96,124.0,123.84,3.6852]
[1741699909164,0.0603733,123.95,123.93,0.05800389]
[1741699909571,0.0603733,123.95,123.85,31.507372]
[1741699909572,30.03626887,124.04,123.85,30.03626887]
[1741699909870,0.05418824,123.95,123.93,0.05303163]
[1741699910166,8.0698,123.94,123.93,0.05303163]
[1741699910363,30.03626887,123.98,123.84,3.6852]
[1741699910559,8.131103,123.95,123.93,0.05969863]
[1741699910859,30.03626887,123.98,123.84,3.6852]
[1741699911063,8.0666,123.99,123.93,8.07]
[1741699911264,0.053086,123.95,123.93,0.05176118]
[1741699911562,30.03626887,124.1,123.93,2.42]
[1741699911763,30.03626887,124.1,123.94,7.1847]
[1741699911968,30.03626887,124.1,123.94,37.22096887]
[1741699912173,269.8136,124.12,123.97,30.03626887]
[1741699912375,30.03626887,124.1,123.95,3.5524]
[1741699912565,269.8136,124.12,123.95,8.0687]
[1741699912566,30.03626887,124.04,123.95,8.0687]
[1741699912768,30.03626887,124.04,123.94,7.1847]
[1741699912971,30.03626887,124.01,123.88,3.4996]
[1741699913271,30.03626887,124.04,123.88,33.53586887]
[1741699913470,30.03626887,124.04,123.89,1.46841986]
[1741699913669,269.8136,124.12,123.88,3.4996]
[1741699913875,30.03626887,124.04,123.88,3.4996]
[1741699914076,0.05693667,123.98,123.95,0.06102713]
[1741699914270,30.09320554,123.98,123.95,0.06102713]
[1741699914465,30.03626887,123.98,123.86,3.427]
[1741699914670,0.05320504,123.98,123.95,0.05764756]
[1741699914872,296.09626887,124.01,123.86,3.427]
[1741699915178,0.05800562,123.98,123.95,0.06154949]
[1741699915375,30.03626887,124.07,123.95,2.48154949]
[1741699915677,30.03626887,124.1,123.92,30.03626887]
[1741699915865,30.03626887,124.1,123.93,1.46747847]
[1741699916066,30.03626887,124.04,123.93,1.46747847]
[1741699916276,3.7536,124.12,123.88,3.4996]
[1741699916277,26.3226161,123.99,123.88,3.4996]
[1741699916473,26.3226161,124.08,123.93,26.3226161]
[1741699916679,26.3226161,124.08,123.97,0.06136979]
[1741699916978,26.3226161,124.05,123.97,7.1976]
[1741699917772,26.3226161,124.08,123.97,7.1976]
[1741699917967,26.3226161,124.08,124.0,0.05911996]
[1741699918172,26.3226161,124.11,124.0,0.05911996]
[1741699918373,266.1,124.26,124.01,26.3226161]
[1741699918576,26.3226161,124.16,124.04,26.3226161]
[1741699919076,26.3226161,124.2,124.04,26.3226161]
[1741699919077,26.3226161,124.2,124.07,26.3226161]
[1741699919274,26.3226161,124.2,124.1,26.3226161]
[1741699919478,29.9150161,124.23,124.17,8.0543]
[1741699919783,26.3226161,124.23,124.1,26.3226161]
[1741699920076,26.3226161,124.17,124.08,7.0949]
[1741699920283,26.3226161,124.21,124.08,33.4175161]
[1741699920583,26.3226161,124.21,124.11,0.05418205]
[1741699920782,26.3226161,124.18,124.11,0.05418205]
[1741699920977,26.3226161,124.12,124.08,3.5328]
[1741699921177,26.3226161,124.2,124.0,3.7205]
[1741699921178,26.3226161,124.09,124.0,3.7205]
[1741699921377,26.3226161,124.06,124.0,3.7205]
[1741699921681,26.3226161,124.09,124.0,3.7205]
[1741699921881,26.3226161,124.1,124.02,0.0610277]
[1741699922081,8.0625,124.06,124.02,0.0610277]
[1741699922276,26.3226161,124.14,123.98,3.713]
[1741699922471,26.3226161,124.07,123.98,3.713]
[1741699922678,8.0632,124.05,123.98,11.7801]
[1741699922869,26.3226161,124.04,123.98,3.713]
[1741699923076,0.0601668,124.03,124.0,0.05131604]
[1741699923478,26.3226161,124.04,124.0,0.05131604]
[1741699923679,0.05324557,124.03,124.0,0.05131604]
[1741699924076,0.05324557,124.03,123.94,3.7205]
[1741699924370,26.3226161,124.04,124.0,0.05843595]
[1741699924574,0.05311331,124.0,123.93,3.5965]
[1741699924778,0.05311331,124.0,123.94,15.2090464]
[1741699924977,26.3226161,124.01,123.95,0.05802156]
[1741699925279,26.37401901,123.98,123.86,7.1469]
[1741699925479,0.05140291,123.98,123.93,26.3226161]
[1741699925781,0.05140291,123.98,123.9,26.3226161]
[1741699925782,34.3859161,124.04,123.98,8.067]
[1741699925978,8.0633,124.04,123.96,0.05134629]
[1741699926183,26.3226161,124.02,123.89,26.3226161]
[1741699926380,8.0654,124.01,123.9,15.23411424]
[1741699926577,26.3226161,124.02,123.91,5.85927471]
[1741699926778,0.05760234,123.97,123.94,0.05254089]
[1741699926984,8.0692,123.95,123.94,0.05254089]
[1741699927282,26.3226161,123.96,123.87,3.5965]
[1741699927283,52.6452322,123.96,123.87,3.5965]
[1741699927584,52.6452322,123.96,123.8,114.90250178]
[1741699927585,26.3226161,123.88,123.8,114.90250178]
[1741699927974,26.3226161,123.9,123.8,114.90250178]
[1741699928378,2.656e-05,123.86,123.84,0.05635877]
[1741699928578,2.656e-05,123.86,123.85,13.96570787]
[1741699928777,26.3226161,123.96,123.85,5.89000787]
[1741699928979,26.3226161,123.99,123.9,8.072]
[1741699929178,26.3226161,123.93,123.8,114.90250178]
[1741699929373,26.3226161,123.86,123.81,5.90947637]
[1741699929586,26.3226161,123.86,123.8,114.90250178]
[1741699929774,26.3226161,123.9,123.8,114.90250178]
[1741699929775,0.05080489,123.88,123.85,0.05994274]
[1741699929975,26.3226161,123.86,123.8,114.90250178]
[1741699930186,26.3226161,123.87,123.75,26.3226161]
[1741699930375,26.3226161,123.87,123.76,15.36507074]
[1741699930686,26.3226161,123.84,123.77,5.90964259]
[1741699930884,26.3226161,123.81,123.74,31.25815429]
[1741699931081,8.0798,123.79,123.74,31.25815429]
[1741699931279,26.3226161,123.75,123.74,31.25815429]
[1741699931584,26.3226161,123.75,123.73,132.41309749]
[1741699931884,26.38185797,123.78,123.73,132.47109222]
[1741699931885,26.3226161,123.78,123.73,132.47109222]
[1741699932079,8.0822,123.75,123.73,132.47109222]
[1741699932280,26.3226161,123.74,123.73,83.70234222]
[1741699932583,0.05838113,123.75,123.71,203.27686874]
[1741699933186,34.46329723,123.75,123.71,203.27686874]
[1741699933385,26.38099723,123.75,123.62,191.0]
[1741699933586,26.38099723,123.75,123.72,0.05921871]
[1741699933780,26.3226161,123.75,123.61,121.63608409]
[1741699933975,26.3226161,123.73,123.72,0.05491918]
[1741699934176,26.3226161,123.78,123.72,0.05491918]
[1741699934380,0.0557383,123.74,123.61,95.31346799]
[1741699934581,26.3226161,123.78,123.61,95.31346799]